Cogmind - Beta 16.1 @@@ ROGUE MODE // 2026.01.21 @ 17:00:06 Player: Minty Result: Destroyed by D-53 Grenadier with Mini Grenade Launcher Performance ------------- Evolutions (0) 0 Regions Visited (2) 400 Robots Destroyed (8) 40 Value Destroyed (214) 214 Prototype IDs (0) 0 Alien Tech Used (0) 0 Bonus (0) 0 TOTAL SCORE: 654 Bonus ------- None Cogmind --------- Core Integrity 0/250 Matter 260/300 Energy 100/100 System Corruption 3% Temperature Cool (0) Movement Flying (40) Location -10/Mines Parts ------- > --- POWER (1) -------- (None) > --- PROPULSION (2) --- Flight Unit > --- UTILITY (2) ------ Visual Processing Unit > --- WEAPON (2) ------- (None) > --- INVENTORY (5) ---- Deuterium Engine VSS Leg Flight Unit Improved Weapon Shielding Peak State ------------ > --- POWER ------------ Light Nuclear Core > --- PROPULSION ------- Aluminum Leg VSS Leg > --- UTILITY ---------- Small Storage Unit Visual Processing Unit > --- WEAPON ----------- Assault Rifle Assault Rifle > --- INVENTORY -------- Ion Engine Light Treads Light Treads Flight Unit Flight Unit Flight Unit Improved Heat Sink Assault Rifle [Rating: 13] Favorites ----------- Power Ion Engine Engine Ion Engine Power Core Light Nuclear Core Propulsion Aluminum Leg Treads Light Treads Leg Aluminum Leg Flight Unit Flight Unit Utility Small Storage Unit Device Heat Sink Storage Small Storage Unit Processor Visual Processing Unit Weapon Assault Rifle Ballistic Gun Assault Rifle Build | -11 -10 -10 ------- Run | Yrd Mat Min Slots Evolved . | . . . Power . | . . . Propulsion . | . . . Utility . | . . . Weapon . | . . . Parts Attached 12 | . 2 10 Power 2 | . . 2 Engine 1 | . . 1 Core 1 | . . 1 Reactor . | . . . Propulsion 7 | . . 7 Treads 2 | . . 2 Leg 3 | . . 3 Wheel . | . . . Hover . | . . . Flight 2 | . . 2 Utility 2 | . 2 . Device 1 | . 1 . Storage . | . . . Processor 1 | . 1 . Hackware . | . . . Protection . | . . . Artifact . | . . . Weapon 1 | . . 1 Energy Gun . | . . . Energy Cannon . | . . . Ballistic Gun 1 | . . 1 Ballistic Cannon . | . . . Launcher . | . . . Special Weapon . | . . . Impact Weapon . | . . . Slashing Weapon . | . . . Piercing Weapon . | . . . Special Melee Weapon . | . . . Unidentified Prototypes . | . . . Parts Lost 3 | . . 3 Power . | . . . Propulsion 1 | . . 1 Utility . | . . . Weapon 2 | . . 2 Highest Loss Streak 3 | . . 3 To Critical Strikes . | . . . Average Backups 7 | 6 7 7 Power . | 1 1 . Propulsion 4 | 4 4 4 Utility . | . . 1 Weapon . | 1 1 . Tool/Special . | . . . Unused Backups 13 | . 1 12 Power 3 | . . 3 Propulsion 6 | . 1 5 Utility 2 | . . 2 Weapon 2 | . . 2 Tool/Special . | . . . Average Slot Usage (%) 97 | . 95 98 Engine 11 | . 14 9 Core 2 | . . 4 Leg 27 | . 28 26 Storage 14 | . 14 14 Processor 11 | . 7 14 Ballistic Gun 27 | . 28 26 Peak Build Rating 13 | 6 8 13 Average Rating 9 | 6 7 10 On Entrance 6 | 6 6 8 Avg Prop Armor Cover (%) . | . . . Naked Turns . | . . . Heaviest Build 18 | 14 15 18 Greatest Support 22 | 20 20 22 Greatest Overweight (x) . | . . . Average Overweight (x) . | . . . Largest Inventory Capacity 8 | 8 8 8 Average Capacity 7 | 8 8 7 Most Carried 8 | 6 8 8 Average Carried 7 | 6 7 7 Final Capacity 8 | 8 8 5 Final Carried 8 | 6 8 4 Class Distribution -------------------- 86% | Mutant 13% | Scavenger-Mutant Dominant Class ---------------- Mutant | -10/Materials Mutant | -10/Mines Resources | -11 -10 -10 ----------- Run | Yrd Mat Min Matter Collected 410 | 200 49 161 Remotely . | . . . Salvage Created 215 | . 74 141 Parts 20 | . 10 10 Haulers Intercepted . | . . . Recyclers Shooed . | . . . Parts Field Recycled . | . . . Retrieved Matter . | . . . Parts Self-Destructed . | . . . Prevented . | . . . Parts Restored . | . . . Kills | -11 -10 -10 ------- Run | Yrd Mat Min Combat Hostiles Destroyed 7 | . 3 4 Guns 7 | . 3 4 Classes Destroyed 4 | . 2 2 Watcher 1 | . 1 . Swarmer 3 | . 3 . Grunt 3 | . . 3 Demolisher 1 | . . 1 Best Kill Streak 3 | . 3 2 Combat Bots Only 3 | . 3 2 Max Kills in Single Turn 2 | . 2 1 Gunslinging 1 | . 1 . Exploded . | . . . Melee . | . . . Uniques/NPCs Destroyed . | . . . Combat | -11 -10 -10 -------- Run | Yrd Mat Min Hostile Shots Fired 56 | . 15 41 Missed 14 | . 4 10 Hits 42 | . 11 31 Projectile 42 | . 11 31 AOE 14 | . . 14 Damage Taken 848 | . 95 753 Core 273 | . 10 263 Absorbed by Shields . | . . . Core Remaining (%) 100 | 100 . . Volleys Fired 23 | . 6 17 Largest 2 | . 2 2 Hottest 40 | . 40 40 Shots Fired 45 | . 12 33 Gun 45 | . 12 33 Cannon . | . . . Launcher . | . . . Special . | . . . Kinetic 45 | . 12 33 Thermal . | . . . Explosive . | . . . Electromagnetic . | . . . Robot Hit Streak 6 | . 3 6 Robot Miss Streak 2 | . 2 2 Penetration Max . | . . . Secondary Targets 2 | . 1 1 Max Gunslinging Chain 1 | . 1 1 Shots Hit Robots 24 | . 6 18 Core Hits 14 | . 4 10 Critical Kills . | . . . Critical Parts Destroyed . | . . . Critical Strikes . | . . . Melee Attacks . | . . . Impact . | . . . Slashing . | . . . Piercing . | . . . Sneak Attacks . | . . . Combat Hostiles . | . . . Follow-up Attacks . | . . . Damage Inflicted 313 | . 78 235 Guns 308 | . 73 235 Cannons . | . . . Explosions . | . . . Melee . | . . . Ramming 5 | . 5 . Kinetic 308 | . 73 235 Thermal . | . . . Explosive . | . . . Electromagnetic . | . . . Impact . | . . . Slashing . | . . . Piercing . | . . . Highest Corruption 3 | . 3 3 Average Corruption 2 | . 2 3 Corruption Purged . | . . . Corruption Blocked . | . . . Effects 6 | . 2 4 Message Errors 2 | . 1 1 Matter Fused 2 | . . 2 Data Loss (minor) 1 | . 1 . Data Loss (major) 1 | . . 1 Overload Shots . | . . . Overflow Damage . | . . . Projectiles . | . . . Explosions . | . . . Melee . | . . . Knockbacks . | . . . Impact . | . . . Kinetic . | . . . Secondary . | . . . Self-Inflicted Damage . | . . . Shots . | . . . Rammed . | . . . Targets Rammed 2 | . 2 . Kicked 2 | . 2 . Crushed . | . . . Highest Temperature 9 | . . 9 Average Temperature 4 | . . 4 Received Heat Transfer 120 | . . 120 Siege Activations . | . . . Martial Activations . | . . . Shielding Activations . | . . . Robots Disrupted . | . . . Combat Hostiles . | . . . Robots Corrupted . | . . . Combat Hostiles . | . . . Parts Fried . | . . . Impact Corruptions . | . . . Robots Melted . | . . . Combat Hostiles . | . . . Parts Melted . | . . . Heat Transferred . | . . . Parts Sabotaged . | . . . Parts Stolen . | . . . Parts Stripped . | . . . Power Chain Reactions . | . . . Alert | -11 -10 -10 ------- Run | Yrd Mat Min Maximum Alert Level . | . . . Low Security (%) 100 | 100 100 100 Level 1 . | . . . Level 2 . | . . . Level 3 . | . . . Level 4 . | . . . Level 5 . | . . . High Security . | . . . Max Security . | . . . Peak Influence 70 | . 70 40 Initial 23 | . . 23 Average 17 | . 20 15 Influence Increases 187 | . 77 110 Destroy 0b10 Robot/C 140 | . 60 80 Destroy 0b10 Robot/NC 5 | . 5 . Destroy Leader 42 | . 12 30 Influence Decreases 177 | . 17 160 Entered New Map 37 | . . 37 Time Decay 110 | . 17 93 Lost Part 30 | . . 30 Squads Dispatched 2 | . 1 1 Investigation 1 | . . 1 Extermination . | . . . Reinforcement 1 | . 1 . Assault . | . . . Garrison . | . . . Intercept . | . . . Searches Triggered . | . . . Construction Impeded . | . . . Haulers Reinforced . | . . . Active Scanning Responses . | . . . Cargo Convoy Interrupts . | . . . Stealth | -11 -10 -10 --------- Run | Yrd Mat Min Distress Signals . | . . . Communications Jammed . | . . . Distress Signals . | . . . Times Spotted 10 | . 4 6 Peak Tracking Total 4 | . 4 2 Tactical Retreats . | . . . Traps | -11 -10 -10 ------- Run | Yrd Mat Min Traps Triggered 2 | . 2 . Indirectly . | . . . Trap Hack Attempts . | . . . Triggered . | . . . Disarmed . | . . . Reprogrammed . | . . . Reused . | . . . Traps Extracted . | . . . Installed . | . . . Triggered . | . . . Machines | -11 -10 -10 ---------- Run | Yrd Mat Min Machines Disabled . | . . . Max in Single Turn . | . . . Machines Repaired . | . . . Machines Dismantled . | . . . Machines Sabotaged . | . . . Overloaded Fab Kills . | . . . Hacking | -11 -10 -10 --------- Run | Yrd Mat Min Machines Accessed 1 | . . 1 Terminals . | . . . Fabricators . | . . . Repair Stations . | . . . Recycling Units . | . . . Scanalyzers . | . . . Garrison Access . | . . . Total Hacks 1 | . . 1 Successful 1 | . . 1 Failed . | . . . Catastrophic . | . . . Database Lockouts . | . . . Manual . | . . . Terminals . | . . . Fabricators . | . . . Repair Stations . | . . . Recycling Units . | . . . Scanalyzers . | . . . Garrison Access . | . . . Terminal Hacks 1 | . . 1 Open Door 1 | . . 1 Fabricator Hacks . | . . . Repair Station Hacks . | . . . Recycling Unit Hacks . | . . . Scanalyzer . | . . . Garrison Access Hacks . | . . . Unauthorized Hacks . | . . . Terminals . | . . . Fabricators . | . . . Repair Stations . | . . . Recycling Units . | . . . Scanalyzers . | . . . Garrison Access . | . . . Data Cores Recovered . | . . . Used . | . . . Hacking Detections . | . . . Full Trace Events . | . . . Feedback Events . | . . . Feedback Blocked . | . . . Robot Schematics Acquired . | . . . Robots Built . | . . . Authchips . | . . . Time . | . . . Total Robot Build Rating . | . . . Part Schematics Acquired . | . . . Parts Built . | . . . Authchips . | . . . Time . | . . . Total Part Build Rating . | . . . Part Studies Acquired . | . . . Parts Repaired . | . . . Time . | . . . Parts Recycled . | . . . Recycled Matter . | . . . Retrieved Matter . | . . . Retrieved Components . | . . . Parts Scanalyzed . | . . . Part Schematics Acquired . | . . . Parts Damaged . | . . . Bothacking | -11 -10 -10 ------------ Run | Yrd Mat Min Used RIF Installer . | . . . Robots Hacked . | . . . Non-combat . | . . . Combat . | . . . Robot Hacks Applied . | . . . Relay Couplers Released . | . . . Fabnet Peak Effective % . | . . . Robots Rewired . | . . . Allies Hacked . | . . . Hacks Repelled . | . . . Allies | -11 -10 -10 -------- Run | Yrd Mat Min Total Allies . | . . . Largest Group . | . . . Highest-Rated Group . | . . . Highest-Rated Ally . | . . . Total Orders . | . . . Ally Attacks . | . . . Total Damage . | . . . Kills . | . . . Allies Corrupted . | . . . Allies Melted . | . . . Intel | -11 -10 -10 ------- Run | Yrd Mat Min Active Infowar (turns) 308 | . 70 238 Optics 308 | . 70 238 Robot Analysis Total . | . . . Derelict Logs Recovered . | . . . Drone Launches . | . . . Drone Recoveries . | . . . Exploration | -11 -10 -10 ------------- Run | Yrd Mat Min Turns Passed 358 | 2 118 238 Spaces Moved 227 | 2 74 151 Core . | . . . Treads . | . . . Legs 216 | 2 74 140 Wheels . | . . . Hover . | . . . Flight 11 | . . 11 Fastest Speed 37 | 120 120 37 Average Speed 113 | 120 120 110 Slowest Speed 120 | 120 120 120 Overloaded Moves . | . . . Propulsion Burnouts . | . . . Robots Hopped 1 | . . 1 Potential Cave-ins . | . . . Cave-ins Triggered . | . . . Exploration Rate (%) 19 | 1 19 38 Regions Visited 2 Branch Regions 1 Pre-discovered Areas . | . . . Known Exits Taken . | . . . Unknown Exits Taken 2 | 1 1 . Scrap Searched . | . . . Spaces Dug . | . . . Terrain Destroyed . | . . . Melee . | . . . Projectile . | . . . AOE . | . . . Terrain Rammed . | . . . Walls Destroyed . | . . . Machines Disabled . | . . . Actions | -11 -10 -10 --------- Run | Yrd Mat Min Total 287 | 1 91 195 Wait . | . . . Move 223 | 1 73 149 Hop 1 | . . 1 Pick Up 8 | . 5 3 Fast Attach 1 | . 1 . Attach 2 | . . 2 Detach 1 | . . 1 Swap 9 | . 1 8 Drop 17 | . 3 14 Fire 23 | . 6 17 Melee . | . . . Ram . | . . . Kick 2 | . 2 . Crush . | . . . Escape Stasis . | . . . Rewire . | . . . Trap . | . . . Miscellaneous . | . . . Route ------- -11/Scrapyard -10/Materials -10/Mines (discovered 1 exit: [*Mat]) History --------- Turn | Location | Event 1 | -11/Scrapyard | Discovered new exit (range 1) 3 | -11/Scrapyard | Entered Materials 90 | -10/Materials | Discovered new exit (range 7) 121 | -10/Materials | Entered Mines 158 | -10/Mines | Discovered new exit (range 5) 280 | -10/Mines | Met a Derelict shopkeep closing up shop 309 | -10/Mines | Assembled infested the area 349 | -10/Mines | Core integrity fell below 50% 356 | -10/Mines | Core integrity fell below 20% 359 | -10/Mines | Destroyed by D-53 Grenadier with Mini Grenade Launcher Last Messages --------------- 00327_ Acquired 18 matter. 00333_ Acquired 10 matter. 00337_ The unstable cave ceiling collapses. 00343_ Assault Rifle destroyed. 00344_ U-05 Engineer builds a Wall. 00344_ D-53 Grenadier destroyed. 00345_ Assault Rifle destroyed. 00346_ The unstable cave ceiling collapses. 00349_ Dropped Imp. Heat Sink. 00349_ Dropped Lgt. Deuterium Engine. 00350_ Dropped Aluminum Leg. 00350_ Dropped Sml. Storage Unit. 00351_ Dropped Lgt. Treads. 00352_ K-01 Serf collects debris. 00353_ The unstable cave ceiling collapses. 00354_ R-06 Scavenger collects Cmb. Airjet. 00356_ K-01 Serf collects debris. 00357_ The unstable cave ceiling collapses. 00357_ Flight Unit destroyed. 00358_ R-06 Scavenger collects Cmb. Airjet. Map ----- +----------------------------------------------------+ | | | | | | | | | | | | | | | | | ????????????????????????????????????????????????? | | ????????????????????????????????????????????????? | | ????????????????????????????????????????????????? | | ????????????????????????????????????????????????? | | ????????????????????????????????????????????????? | | ????????????????????????????????????????????????? | | ??????????????####??????????????????????????????? | | ?????????????## ##?????????????????????????????? | | ????????????## #?????????????????????????????? | | ???????????## #?????????????????????????????? | | ?????????### #?????????????????????????????? | | ????????## ##????????????????????????????? | | ???????## ##???????????????????????????? | | ???????# " #??????#?#?#????????????????? | | ??????? ##???? # # #????????????????? | | ??????? ##### #????????????????? | | ??????????# # # ?????????????????? | | ??????????## @# % # ?????????????????? | | ??????????# # ?????????????????? | | ?????????## ###????????????????? | | ?????????# ##????????????????? | | ?????????# = ! #????????????????? | | ?????????# = d #????????????????? | | ?????????# # r ###????????????????? | | ?????????## ! #####??????????????????? | | ??????????## #####??????????????????????? | | ???????????## ######??????????????????????????? | | ????????????## #???????????????????????????????? | | ?????????????# #??#########????????????????????? | | ?????????????# #?# #????????????????????? | | ?????######??#= #?#""" #????????????????????? | | ????##""""#### !###""" #????????????????????? | | ????#" !!*"## ##""" #????????????????????? | | ????#"=[* "## ## #????????????????????? | | ????## ### ### < #????????????????????? | | ????### ### ##?# #????????????????????? | | ????# X ##??# ?????????????????????? | | ???## ##????? ???????????????????????? | | ???# ##???????# #####????????????????????? | | ???# #????###?# #????????????????????? | | ???## #???## ### ### #????????????????????? | | ????###### ##### ## #?# #????????????????????? | +----------------------------------------------------+ Best States ------------- Heat Dissipation 35 Energy Generation 14 Energy Capacity 275 Matter Stores 300 Matter Capacity 300 Sight Range 18 Terrain Scan Density 10 Evasion (%) 55 Recoil Reduction 2 Item Schematics ----------------- None Robot Schematics ------------------ None Fabricated ------------ Nothing Repaired ---------- Nothing Studied --------- None Alien Tech Used ----------------- None Achievements -------------- None Challenges ------------ None Game ------ Seed WardroneAblativeArmor Manual? 0 Play Time 00:04:52 Cumulative 1246.1 hours Start 2026.01.21 @ 16:56:00 End 2026.01.21 @ 17:00:06 Sessions 1 Manual Loads 0 Difficulty Rogue Special Mode None Game No. 1533 Rogue 1249 Adventurer 124 Explorer 160 Win Type - Total 59 Types 45/0/8/4/1/0/0/1/0/0 Lore% 93 Gallery% 86 Achievement% 67 Wizard Run 0 Options --------- Layout 0 ASCII 0 Keyboard 1 Movement Numpad Keybinds 0 Fullscreen 2 Font 18/X11 Map View 76x50 Zoom Use 0% Tactical HUD 1 Map Filters NONE Filters NONE Steam 1 RUN: 4ab6a146-f8b8-4110-8729-fefc450aae9e